fUSD/lending_fUSD_20250325
["ID","MTS","AMOUNT","RATE_DAILY","PERIOD"]
[356656549,1742923840784,-500.0,0.0003675,2]
[356656550,1742923840793,-500.0,0.0003675,2]
[356656551,1742923840802,-500.0,0.0003675,2]
[356656552,1742923840811,-500.0,0.0003675,2]
[356656553,1742923840820,-320.73132288,0.0003675,2]
[356656554,1742923840830,-256.62598152,0.0003675,7]
[356656555,1742923840839,-151.0,0.0003675,7]
[356656556,1742923840848,-151.0,0.0003675,7]
[356656557,1742923840858,-9948.63059952,0.0003678,3]
[356656558,1742923841027,-8822.3,0.0003678,3]
[356656559,1742923841041,-809.57274807,0.0003678,3]
[356656560,1742923841053,-1454.30000025,0.0003678,3]
[356656561,1742923841088,-901.4202829,0.0003678,3]
[356656705,1742923845698,-788.0,0.0003042,2]
[356656706,1742923845707,-937.759,0.0003042,2]
[356656707,1742923845717,-8109.5762307,0.0003678,3]
[356656708,1742923845727,-151.0,0.0003678,7]
[356656709,1742923845736,-151.0,0.0003678,7]
[356656710,1742923845746,-151.0,0.0003678,7]
[356656711,1742923845756,-151.0,0.0003678,7]
[356656712,1742923845766,-599.532264,0.0003678,7]
[356656713,1742923845776,-599.532264,0.0003678,7]
[356656714,1742923845785,-244.169765,0.0003678,7]
[356656715,1742923845794,-1312.78,0.00036799,2]
[356656716,1742923845805,-416.9567,0.000368,2]
[356656717,1742923845814,-306.86,0.00036806,2]
[356656718,1742923845824,-772.25,0.00036859,2]
[356656719,1742923845833,-2000.0,0.00036876,120]
[356656720,1742923845842,-306.86,0.00036883,2]
[356656721,1742923845852,-250.0,0.00036903,2]
[356656722,1742923845862,-306.86,0.0003696,2]
[356656723,1742923845872,-306.86,0.00037037,2]
[356656724,1742923845881,-457.25971843,0.00037067,5]
[356656725,1742923845891,-306.86,0.00037114,2]
[356656726,1742923845900,-162.380719,0.00037191,2]
[356656727,1742923845909,-306.86,0.00037191,2]
[356656728,1742923845919,-200.0,0.00037199,10]
[356656729,1742923845928,-200.0,0.000372,10]
[356656730,1742923845937,-306.86,0.00037268,2]
[356656731,1742923845946,-152.05,0.000373,31]
[356656732,1742923845956,-152.05,0.000373,31]
[356656733,1742923845966,-152.05,0.000373,31]
[356656734,1742923845975,-152.05,0.000373,31]
[356656735,1742923845984,-152.05,0.000373,31]
[356656736,1742923845993,-152.05,0.000373,31]
[356656737,1742923846003,-152.05,0.000373,31]
[356656738,1742923846012,-152.05,0.000373,31]
[356656739,1742923846021,-152.05,0.000373,31]
[356656740,1742923846031,-152.05,0.000373,31]
[356656741,1742923846040,-152.05,0.000373,31]
[356656742,1742923846050,-152.05,0.000373,31]
[356656743,1742923846059,-152.05,0.000373,31]
[356656744,1742923846072,-152.05,0.000373,31]
[356656745,1742923846082,-152.05,0.000373,31]
[356656746,1742923846092,-152.05,0.000373,31]
[356656747,1742923846104,-152.05,0.000373,31]
[356656748,1742923846117,-152.05,0.000373,31]
[356656749,1742923846126,-152.05,0.000373,31]
[356656750,1742923846136,-152.05,0.000373,31]
[356656751,1742923846149,-2000.0,0.00037313,3]
[356656752,1742923846159,-181.36,0.00037331,120]
[356656753,1742923846169,-183.0,0.00037344,2]
[356656754,1742923846178,-306.86,0.00037345,2]
[356656755,1742923846190,-500.0,0.00037357,5]
[356656757,1742923846199,-434.2257,0.00037408,2]
[356656759,1742923846209,-306.86,0.00037423,2]
[356656761,1742923846219,-646.0,0.00037447,2]
[356656763,1742923846229,-150.0,0.00037491,2]
[356656764,1742923846238,-306.86,0.000375,2]
[356656765,1742923846248,-1648.89761409,0.000375,7]
[356656767,1742923846258,-4000.0,0.000375,45]
[356656769,1742923846268,-382.0,0.000375,2]
[356656771,1742923846277,-151.0,0.000375,7]
[356656772,1742923846287,-151.0,0.000375,7]
[356656773,1742923846297,-265.633567,0.000375,7]
[356656774,1742923846307,-151.0,0.000375,7]
[356656775,1742923846316,-599.532264,0.000375,7]
[356656776,1742923846326,-599.532264,0.000375,7]
[356656777,1742923846336,-5438.5578678,0.00037517,2]
[356656778,1742923846345,-858.26493833,0.00037517,2]
[356656779,1742923846355,-2240.96348,0.00037551,2]
[356656780,1742923846365,-306.86,0.00037577,2]
[356656781,1742923846375,-306.86,0.00037654,2]
[356656782,1742923846384,-1109.33,0.000377,7]
[356656783,1742923846394,-306.86,0.00037731,2]
[356656784,1742923846403,-2500.0,0.00037747,2]
[356656785,1742923846412,-3819.88,0.00037804,2]
[356656786,1742923846422,-306.86,0.00037808,2]
[356656787,1742923846431,-151.0,0.00037808,7]
[356656788,1742923846441,-1916.62189704,0.00037814,2]
[356656789,1742923846450,-1000.0,0.00037847,2]
[356656791,1742923846459,-25144.6512,0.00037847,2]
[356656793,1742923846468,-151.0,0.00037847,7]
[356656795,1742923846478,-294.427608,0.00037847,7]
[356656797,1742923846487,-599.532264,0.00037847,7]
[356656798,1742923846497,-599.532264,0.00037847,7]
[356656799,1742923846507,-306.86,0.00037885,2]
[356656800,1742923846516,-500.0,0.00037897,2]
[356656801,1742923846526,-306.86,0.00037962,2]
[356656802,1742923846535,-252.6,0.0003799,120]
[356656803,1742923846545,-602.43596877,0.00038,120]
[356656804,1742923846554,-176.0,0.00038,2]
[356656805,1742923846564,-306.86,0.00038039,2]
[356656806,1742923846574,-1304.41763188,0.00038045,30]
[356656807,1742923846583,-263.0,0.0003815,2]
[356656808,1742923846593,-150.13,0.00038154,2]
[356656809,1742923846601,-201.86162449,0.000384,8]
[356656810,1742923846611,-150.0,0.00038428,2]
[356656811,1742923846620,-293.84,0.00038443,2]
[356656812,1742923846629,-195.64,0.00038443,2]
[356656813,1742923846639,-1009.19,0.0003863,2]
[356656814,1742923846648,-176.0,0.0003863,14]
[356656815,1742923846657,-169.56,0.00038816,2]
[356656816,1742923846667,-165.90633,0.0003891,64]
[356656817,1742923846676,-200.0,0.00038982,2]
[356656818,1742923846685,-200.0,0.00038982,2]
[356656819,1742923846695,-200.0,0.00038982,2]
[356656820,1742923846704,-200.0,0.00038982,2]
[356656821,1742923846713,-200.0,0.00038982,2]
[356656822,1742923846723,-200.0,0.00038982,2]
[356656823,1742923846731,-200.0,0.00038982,2]
[356656824,1742923846741,-331.0,0.00038982,2]
[356656825,1742923846750,-1916.62189704,0.00039,2]
[356656826,1742923846760,-238.11386453,0.00039,120]
[356656827,1742923846769,-263.0,0.0003925,2]
[356656828,1742923846778,-150.0,0.00039366,2]
[356656829,1742923846787,-150.13,0.0003968,2]
[356656830,1742923846796,-2000.0,0.00039759,4]
[356656831,1742923846806,-11960.72719656,0.0003988,30]
[356656832,1742923846815,-599.532264,0.0003988,14]
[356656833,1742923846825,-599.532264,0.0003988,14]
[356656834,1742923846834,-163.92607658,0.000399,2]
[356656835,1742923846843,-168.3888056,0.0003993,2]
[356656836,1742923846853,-416.0,0.0004,5]
[356656837,1742923846862,-1000.0,0.0004,12]
[356656838,1742923846872,-1012.0,0.0004,7]
[356656839,1742923846881,-602.43596877,0.0004,120]
[356656840,1742923846891,-1000.0,0.0004,2]
[356656841,1742923846900,-2489.42888344,0.0004,120]
[356656842,1742923846909,-500.0,0.0004,120]
[356656843,1742923846919,-1916.62189704,0.00040185,15]
[356656844,1742923846928,-176.0,0.00040274,14]
[356656845,1742923846938,-150.0,0.00040303,2]
[356656846,1742923846947,-263.0,0.0004034,2]
[356656847,1742923846957,-152.0,0.00040356,3]
[356656848,1742923846966,-201.86162449,0.00040713,8]
[356656849,1742923846975,-500.0,0.0004074,2]
[356656850,1742923846985,-1009.19,0.00040893,2]
[356656851,1742923846994,-3819.88,0.00040994,2]
[356656852,1742923847004,-897.27052037,0.00041004,7]
[356656853,1742923847013,-220294.24335292,0.00041004,7]
[356656854,1742923847022,-21652.0702533,0.00041005,3]
[356656855,1742923847031,-14417.32626322,0.00041015,30]
[356656856,1742923847039,-599.532264,0.00041015,14]
[356656857,1742923847139,-599.532264,0.00041015,14]
[356656858,1742923847150,-150.84,0.00041075,2]
[356656859,1742923847161,-108260.351267,0.00041086,3]
[356656860,1742923847170,-599.532264,0.00041096,14]
[356656861,1742923847180,-599.532264,0.00041096,14]
[356656862,1742923847191,-324.78922,0.00041096,31]
[356656863,1742923847200,-152.05,0.000412,31]
[356656864,1742923847210,-152.05,0.000412,31]
[356656865,1742923847219,-152.05,0.000412,31]
[356656866,1742923847228,-152.05,0.000412,31]
[356656867,1742923847238,-152.05,0.000412,31]
[356656868,1742923847247,-152.05,0.000412,31]
[356656869,1742923847256,-152.05,0.000412,31]
[356656870,1742923847266,-152.05,0.000412,31]
[356656871,1742923847275,-152.05,0.000412,31]
[356656872,1742923847284,-152.05,0.000412,31]
[356656873,1742923847294,-152.05,0.000412,31]
[356656874,1742923847304,-152.05,0.000412,31]
[356656875,1742923847313,-152.05,0.000412,31]
[356656876,1742923847323,-150.0,0.0004124,2]
[356656877,1742923847333,-1000.0,0.00041336,2]
[356656878,1742923847342,-995.68,0.00041357,120]
[356656879,1742923847352,-157.86,0.00041357,120]
[356656880,1742923847361,-995.68,0.00041357,120]
[356656881,1742923847370,-1916.62189704,0.0004137,15]
[356656882,1742923847379,-165.90632,0.0004141,69]
[356656883,1742923847388,-263.0,0.0004144,2]
[356656884,1742923847397,-2000.0,0.00041465,8]
[356656885,1742923847406,-599.532264,0.00041624,14]
[356656886,1742923847415,-599.53227,0.00041624,14]
[356656887,1742923847425,-890.77595758,0.000417,10]
[356656888,1742923847434,-1126.74449314,0.00041761,14]
[356656889,1742923847443,-21652.0702533,0.0004178,3]
[356656890,1742923847453,-150.84,0.0004178,2]
[356656891,1742923847463,-21652.0702533,0.0004179,3]
[356656892,1742923847472,-34467.2152492,0.0004179,3]
[356656893,1742923847481,-1300.0,0.000419,15]
[356656894,1742923847491,-163.92607656,0.000419,28]
[356656895,1742923847499,-21652.0702533,0.0004197,3]
[356656896,1742923847509,-17233.6076246,0.0004197,3]
[356656897,1742923847518,-17233.6076246,0.0004198,3]
[356656898,1742923847527,-150.84,0.0004198,2]
[356656899,1742923847536,-43304.1405066,0.0004199,3]
[356656900,1742923847546,-17233.6076246,0.0004199,3]
[356656901,1742923847555,-52690.0,0.00042,120]
[356656902,1742923847564,-4089.38668797,0.00042,4]
[356656903,1742923847573,-150.0,0.00042177,2]
[356656904,1742923847584,-252.6,0.00042211,120]
[356656905,1742923847593,-17233.6076246,0.00042235,3]
[356656906,1742923847602,-180.0,0.00042288,90]
[356656907,1742923847611,-21652.0702533,0.00042391,3]
[356656908,1742923847620,-17233.6076246,0.00042391,3]
[356656909,1742923847630,-1000.0,0.0004242,30]
[356656910,1742923847639,-150.84,0.00042452,2]
[356656911,1742923847648,-21652.0702533,0.00042462,3]
[356656912,1742923847657,-34467.2152492,0.00042462,3]
[356656913,1742923847667,-171.98582887,0.00042466,120]
[356656914,1742923847676,-300.0,0.000425,7]
[356656915,1742923847685,-300.0,0.000425,7]
[356656916,1742923847694,-342.74338087,0.000425,7]
[356656917,1742923847703,-263.0,0.0004253,2]
[356656918,1742923847712,-1916.62189704,0.00042556,15]
[356656919,1742923847722,-171.98582887,0.0004263,120]
[356656920,1742923847731,-174.61919141,0.00042669,2]
[356656921,1742923847740,-21652.0702533,0.0004279,3]
[356656922,1742923847750,-171.98582887,0.00042795,120]
[356656923,1742923847759,-2188.35983939,0.000428,60]
[356656924,1742923847768,-152.0,0.00042809,4]
[356656925,1742923847777,-795.44138917,0.00042836,10]
[356656926,1742923847787,-17233.6076246,0.00042909,3]
[356656927,1742923847796,-21652.0702533,0.0004292,3]
[356656928,1742923847805,-17233.6076246,0.0004292,3]
[356656929,1742923847815,-21652.0702533,0.00042929,3]
[356656930,1742923847826,-171.98582887,0.00042959,120]
[356656931,1742923847835,-754.51235074,0.00042979,30]
[356656932,1742923847844,-150.84,0.0004298,2]
[356656933,1742923847853,-17233.6076246,0.0004299,3]
[356656934,1742923847862,-1204.87193754,0.00043,120]
[356656935,1742923847871,-201.86162449,0.00043025,9]
[356656936,1742923847880,-583.30619091,0.00043039,59]
[356656937,1742923847889,-607.5541625,0.00043051,10]
[356656938,1742923847898,-1400.0,0.00043071,60]
[356656939,1742923847907,-150.0,0.00043115,2]
[356656940,1742923847917,-21652.0702533,0.00043133,3]
[356656941,1742923847926,-17233.6076246,0.00043133,3]
[356656942,1742923847936,-171.98582887,0.00043151,120]
[356656943,1742923847945,-1009.19,0.00043157,2]
[356656944,1742923847955,-17233.6076246,0.00043171,3]
[356656945,1742923847963,-2000.0,0.00043172,8]
[356656946,1742923847973,-171.98582887,0.00043315,120]
[356656947,1742923847982,-171.98582887,0.00043479,120]
[356656948,1742923847991,-21652.0702533,0.0004349,3]
[356656949,1742923848000,-181.36,0.00043553,120]
[356656950,1742923848010,-150.84,0.00043594,2]
[356656951,1742923848019,-210.3817,0.00043599,30]
[356656952,1742923848028,-5000.0,0.000436,120]
[356656953,1742923848038,-17233.6076246,0.000436,3]
[356656954,1742923848047,-21652.0702533,0.00043603,3]
[356656955,1742923848056,-17233.6076246,0.00043603,3]
[356656956,1742923848066,-21652.0702533,0.00043611,3]
[356656957,1742923848075,-17233.6076246,0.00043611,3]
[356656958,1742923848085,-1400.0,0.00043619,60]
[356656959,1742923848094,-21652.0702533,0.0004362,3]
[356656960,1742923848105,-17233.6076246,0.0004362,3]
[356656961,1742923848116,-151.94,0.00043624,120]
[356656962,1742923848126,-263.0,0.0004363,2]
[356656963,1742923848135,-21652.0702533,0.00043631,3]
[356656964,1742923848144,-17233.6076246,0.00043631,3]
[356656965,1742923848154,-150.84,0.00043631,2]
[356656966,1742923848164,-164.57954389,0.00043633,30]
[356656967,1742923848173,-666.0,0.00043639,30]
[356656968,1742923848184,-21652.0702533,0.0004364,3]
[356656969,1742923848194,-51700.8228738,0.0004364,3]
[356656970,1742923848203,-171.98582887,0.00043644,120]
[356656971,1742923848212,-346.53332451,0.0004365,30]
[356656972,1742923848222,-17233.6076246,0.00043651,3]
[356656973,1742923848231,-1100.93600369,0.0004366,60]
[356656974,1742923848241,-519.96301057,0.0004366,120]
[356656975,1742923848250,-150.84,0.00043661,2]
[356656976,1742923848259,-103401.645748,0.00043671,3]
[356656977,1742923848269,-150.84,0.00043671,2]
[356656978,1742923848278,-150.0,0.00043673,10]
[356656979,1742923848287,-150.0,0.0004368,120]
[356656980,1742923848297,-628.44871424,0.00043681,7]
[356656981,1742923848306,-38240.4169736,0.00043681,7]
[356656982,1742923848315,-157785.30119,0.00043681,7]
[356656983,1742923848325,-2600.0,0.000437,15]
[356656984,1742923848335,-19132.38851298,0.000437,17]
[356656985,1742923848344,-1916.62189704,0.00043741,15]
[356656986,1742923848354,-17233.6076246,0.0004379,3]
[356656987,1742923848364,-150.84,0.00043795,2]
[356656988,1742923848373,-150.0,0.00043796,30]
[356656989,1742923848382,-207.13171532,0.00043796,30]
[356656990,1742923848392,-150.0,0.00043796,30]
[356656991,1742923848401,-207.13171532,0.00043796,30]
[356656992,1742923848410,-150.0,0.00043796,30]
[356656993,1742923848419,-207.13171532,0.00043796,30]
[356656994,1742923848429,-150.0,0.00043796,30]
[356656995,1742923848439,-207.13171532,0.00043796,30]
[356656996,1742923848448,-150.0,0.00043796,30]
[356656997,1742923848458,-394.36348741,0.00043796,30]
[356656998,1742923848468,-150.0,0.00043796,30]
[356656999,1742923848478,-150.0,0.00043796,30]
[356657000,1742923848487,-150.0,0.00043796,30]
[356657001,1742923848497,-150.0,0.00043796,30]
[356657002,1742923848583,-167.37907091,0.00043796,30]
[356657003,1742923848593,-3900.0,0.000438,15]
[356657004,1742923848603,-17233.6076246,0.00043805,3]
[356657005,1742923848614,-171.98582887,0.00043836,120]
[356657006,1742923848624,-500.0,0.00043836,31]
[356657007,1742923848633,-500.0,0.00043836,31]
[356657008,1742923848643,-500.0,0.00043836,31]
[356657009,1742923848652,-500.0,0.00043836,31]
[356657010,1742923848662,-500.0,0.00043836,31]
[356657011,1742923848672,-500.0,0.00043836,31]
[356657012,1742923848682,-500.0,0.00043836,31]
[356657013,1742923848691,-500.0,0.00043836,31]
[356657014,1742923848700,-500.0,0.00043836,31]
[356657015,1742923848710,-500.0,0.00043836,31]
[356657016,1742923848720,-500.0,0.00043836,31]
[356657017,1742923848729,-500.0,0.00043836,31]
[356657018,1742923848739,-500.0,0.00043836,31]
[356657019,1742923848748,-500.0,0.00043836,31]
[356657020,1742923848759,-500.0,0.00043836,31]
[356657021,1742923848768,-500.0,0.00043836,31]
[356657022,1742923848778,-500.0,0.00043836,31]
[356657023,1742923848788,-500.0,0.00043836,31]
[356657024,1742923848797,-500.0,0.00043836,31]
[356657025,1742923848807,-500.0,0.00043836,31]
[356657026,1742923848816,-500.0,0.00043836,31]
[356657027,1742923848826,-500.0,0.00043836,31]
[356657028,1742923848835,-500.0,0.00043836,31]
[356657029,1742923848845,-500.0,0.00043836,31]
[356657030,1742923848854,-500.0,0.00043836,31]
[356657031,1742923848866,-500.0,0.00043836,31]
[356657032,1742923848876,-500.0,0.00043836,31]
[356657033,1742923848885,-500.0,0.00043836,31]
[356657034,1742923848895,-500.0,0.00043836,31]
[356657035,1742923848905,-462.26897011,0.00043836,31]
[356657036,1742923848914,-500.0,0.00043836,31]
[356657037,1742923848924,-500.0,0.00043836,31]
[356657038,1742923848934,-500.0,0.00043836,31]
[356657039,1742923848944,-500.0,0.00043836,31]
[356657040,1742923848953,-500.0,0.00043836,31]
[356657041,1742923848963,-500.0,0.00043836,31]
[356657042,1742923848972,-500.0,0.00043836,31]
[356657043,1742923848982,-500.0,0.00043836,31]
[356657044,1742923848991,-500.0,0.00043836,31]
[356657045,1742923849001,-500.0,0.00043836,120]
[356657046,1742923849010,-500.0,0.00043836,120]
[356657047,1742923849019,-500.0,0.00043836,120]
[356657048,1742923849029,-500.0,0.00043836,120]
[356657049,1742923849038,-500.0,0.00043836,120]
[356657050,1742923849047,-500.0,0.00043836,120]
[356657051,1742923849057,-500.0,0.00043836,120]
[356657052,1742923849067,-500.0,0.00043836,120]
[356657053,1742923849076,-500.0,0.00043836,120]
[356657054,1742923849085,-500.0,0.00043836,120]
[356657055,1742923849095,-500.0,0.00043836,120]
[356657056,1742923849107,-500.0,0.00043836,120]
[356657057,1742923849118,-500.0,0.00043836,120]
[356657058,1742923849128,-500.0,0.00043836,120]
[356657059,1742923849138,-500.0,0.00043836,120]
[356657060,1742923849149,-500.0,0.00043836,120]
[356657061,1742923849159,-63643.3217426,0.0004388,120]
[356657062,1742923849168,-218.0,0.000439,120]
[356657063,1742923849178,-206.0,0.000439,120]
[356657064,1742923849190,-5200.0,0.000439,16]
[356657065,1742923849199,-163.92607656,0.000439,28]
[356657066,1742923849209,-165.90633,0.0004391,75]
[356657067,1742923849218,-2624.0,0.00043945,120]
[356657068,1742923849227,-1960.819936,0.0004397,2]
[356657069,1742923849237,-150.84,0.0004397,2]
[356657070,1742923849246,-4780.0,0.00043973,120]
[356657071,1742923849255,-17948.70454743,0.0004398,120]
[356657072,1742923849265,-728.12,0.0004398,90]
[356657073,1742923849274,-728.12,0.0004398,90]
[356657074,1742923849283,-728.12,0.0004398,90]
[356657075,1742923849292,-728.12,0.0004398,90]
[356657076,1742923849301,-728.12,0.0004398,90]
[356657077,1742923849310,-728.12,0.0004398,90]
[356657078,1742923849319,-728.12,0.0004398,90]
[356657079,1742923849329,-728.12,0.0004398,90]
[356657080,1742923849338,-728.12,0.0004398,90]
[356657081,1742923849347,-728.12,0.0004398,90]
[356657082,1742923849356,-728.12,0.0004398,90]
[356657083,1742923849367,-728.12,0.0004398,90]
[356657084,1742923849376,-728.12,0.0004398,90]
[356657085,1742923849386,-728.12,0.0004398,90]
[356657086,1742923849396,-728.12,0.0004398,90]
[356657088,1742923849405,-728.12,0.0004398,90]
[356657090,1742923849414,-728.12,0.0004398,90]
[356657092,1742923849424,-728.12,0.0004398,90]
[356657094,1742923849433,-728.12,0.0004398,90]
[356657096,1742923849443,-728.12,0.0004398,90]
[356657098,1742923849452,-728.12,0.0004398,90]
[356657100,1742923849462,-728.12,0.0004398,90]
[356657102,1742923849471,-728.12,0.0004398,90]
[356657104,1742923849480,-728.23591044,0.0004398,90]
[356657106,1742923849489,-4059.0,0.00044,30]
[356657108,1742923849499,-40990.0,0.00044,3]
[356657110,1742923849509,-701052.65399587,0.00044,2]
[356657112,1742923849518,-400.000001,0.00044,3]
[356657114,1742923849528,-171.98582887,0.00044,120]
[356657116,1742923849537,-14204.72277837,0.00044,7]
[356657118,1742923849546,-150.0,0.00044052,2]
[356657120,1742923849556,-171.98582887,0.00044164,120]
[356657122,1742923849566,-1400.0,0.00044167,120]
[356657124,1742923849575,-500.0,0.00044167,120]
[356657126,1742923849584,-607.55416244,0.00044193,14]
[356657128,1742923849593,-350.0,0.00044221,10]
[356657130,1742923849602,-293.84,0.00044239,2]
[356657132,1742923849612,-195.64,0.00044239,2]
[356657134,1742923849622,-32370.37445317,0.0004432,2]
[356657136,1742923849631,-171.98582887,0.00044329,120]
[356657138,1742923849641,-200.0,0.000444,120]
[356657140,1742923849649,-1400.0,0.00044441,120]
[356657142,1742923849659,-500.0,0.00044441,120]
[356657144,1742923849668,-6000.0,0.000445,120]
[356657146,1742923849677,-1400.0,0.00044715,120]
[356657148,1742923849687,-500.0,0.00044715,120]
[356657150,1742923849696,-263.0,0.0004472,30]
[356657152,1742923849705,-2000.0,0.00044879,8]
[356657154,1742923849715,-358.50509444,0.000449,30]
[356657156,1742923849724,-1916.62189704,0.00044926,15]
[356657158,1742923849733,-4452.0204717,0.00044969,2]
[356657160,1742923849743,-1400.0,0.00044989,120]
[356657162,1742923849752,-150.0,0.00044989,2]
[356657164,1742923849761,-1000.0,0.00044999,120]
[356657166,1742923849770,-50000.0,0.00045,45]
[356657168,1742923849779,-500.0,0.00045,120]
[356657170,1742923849788,-1000.0,0.00045,60]
[356657172,1742923849798,-35429.36143766,0.00045,120]
[356657174,1742923849808,-471.85182666,0.00045,90]
[356657176,1742923849817,-401.18205277,0.00045,120]
[356657178,1742923849827,-160.55,0.00045,7]
[356657180,1742923849836,-953.91422,0.00045,120]
[356657182,1742923849845,-32975.67774968,0.00045,120]
[356657184,1742923849854,-558.0,0.00045,120]
[356657186,1742923849865,-150.0,0.00045,85]
[356657196,1742923849951,-1000.0,0.00045,2]
[356657198,1742923849961,-151.0,0.00045,120]
[356657200,1742923849969,-200.0,0.00045,120]
[356657201,1742923849983,-152.05,0.00045,39]
[356657202,1742923849992,-152.05,0.00045,39]
[356657203,1742923850001,-152.05,0.00045,39]
[356657204,1742923850010,-152.05,0.00045,39]
[356657205,1742923850019,-152.05,0.00045,39]
[356657206,1742923850028,-152.05,0.00045,39]
[356657207,1742923850037,-152.05,0.00045,39]
[356657208,1742923850046,-152.05,0.00045,39]
[356657209,1742923850055,-152.05,0.00045,39]
[356657210,1742923850064,-152.05,0.00045,39]
[356657211,1742923850073,-152.05,0.00045,39]
[356657212,1742923850083,-152.05,0.00045,39]
[356657213,1742923850092,-152.05,0.00045,39]
[356657214,1742923850102,-152.05,0.00045,39]
[356657215,1742923850118,-152.05,0.00045,39]
[356657216,1742923850128,-152.05,0.00045,39]
[356657217,1742923850139,-152.05,0.00045,39]
[356657218,1742923850149,-152.05,0.00045,39]
[356657219,1742923850159,-152.05,0.00045,39]
[356657220,1742923850168,-152.05,0.00045,39]
[356657221,1742923850178,-150.0,0.0004505,120]
[356657222,1742923850190,-176.0,0.00045107,90]
[356657223,1742923850199,-177.392,0.00045111,120]
[356657224,1742923850208,-177.393,0.00045111,120]
[356657225,1742923850217,-500.0,0.00045205,14]
[356657226,1742923850226,-500.0,0.00045205,120]
[356657227,1742923850236,-150.0,0.00045205,14]
[356657228,1742923850244,-892.0,0.00045205,14]
[356657229,1742923850254,-1247.0,0.00045205,14]
[356657230,1742923850263,-500.0,0.00045205,14]
[356657231,1742923850272,-150.0,0.00045205,2]
[356657232,1742923850281,-500.0,0.00045205,14]
[356657233,1742923850291,-150.0,0.00045205,2]
[356657234,1742923850301,-500.0,0.00045205,14]
[356657235,1742923850310,-150.23671039,0.00045205,14]
[356657236,1742923850320,-150.0,0.00045205,14]
[356657237,1742923850329,-500.0,0.00045205,14]
[356657238,1742923850338,-500.0,0.00045205,14]
[356657239,1742923850347,-163.00489983,0.00045205,14]
[356657240,1742923850356,-152.0,0.00045263,5]
[356657241,1742923850366,-500.0,0.00045263,120]
[356657242,1742923850375,-607.55416244,0.00045334,19]
[356657243,1742923850384,-201.86162449,0.00045338,10]
[356657244,1742923850393,-500.0,0.00045342,14]
[356657245,1742923850402,-150.0,0.00045342,14]
[356657246,1742923850411,-892.0,0.00045342,14]
[356657247,1742923850421,-1247.0,0.00045342,14]
[356657248,1742923850431,-500.0,0.00045342,14]
[356657249,1742923850440,-500.0,0.00045342,14]
[356657250,1742923850450,-603.36902649,0.00045342,14]
[356657251,1742923850460,-150.0,0.00045342,14]
[356657252,1742923850469,-500.0,0.00045342,14]
[356657253,1742923850479,-534.83833918,0.00045342,14]
[356657254,1742923850489,-181.08010149,0.00045408,2]
[356657255,1742923850498,-1009.19,0.00045421,2]
[356657256,1742923850508,-500.0,0.00045479,14]
[356657257,1742923850517,-199.5988,0.00045479,14]
[356657258,1742923850526,-892.0,0.00045479,14]
[356657259,1742923850536,-1247.0,0.00045479,14]
[356657260,1742923850545,-500.0,0.00045479,14]
[356657261,1742923850555,-500.0,0.00045479,14]
[356657262,1742923850564,-200.5788279,0.00045479,14]
[356657263,1742923850573,-500.0,0.00045479,14]